{"text_format":"1","workbook":"xlsx","n_sheets":6,"sheets":["Wichtige Hinweise","Reisekostenabrechnung","Sonstige Kosten","Tagessätze","AP Auswahlwerte","Sonstige Kosten - Auswahl"],"not_rendered":{"charts":0,"images":3,"macros":1,"external_links":1,"defined_names":19,"comments":0,"pivot_tables":0},"unopened":[],"bounds":{"document_bytes":16777216,"sheet_cells":100000,"rows_first":2000,"rows_last":500,"rows_between":2000,"halvings":0,"cell_chars":16384,"cell_head_chars":4096},"cells_cut":0,"cells_raw":0,"read":"whole","date_system":"1900"}

{"sheet":"Wichtige Hinweise","index":0,"n_rows":50,"n_cols":2,"rows_kept":50,"cut":false,"hidden":true,"merged":[]}
["Hinweise zum Arbeiten mit der Muster-Reisekostenabrechnung"]
[]
[]
["1.","Für die Nutzung dieser Datei setzen wir Excel-Kenntnisse voraus, da u. U. an einigen Stellen Zellen eingefügt oder neu formatiert werden müssen, z. B. "]
[null,"wenn vorhandene  Zellen nicht ausreichen. Generell sind nur Zellen der in BLAUER SCHRIFT gekennzeichneten Spalten Eingabefelder."]
[]
["2.","Vor Nutzung der Reisekostenabrechnung sind in den Zeilen 1 bis 3 die Firmenbezeichnung, Abrechnungszeitraum und Name des Arbeitnehmers einzutragen. "]
[null,"Bitte benennen Sie in den Zeilen 5 und 6 unbedingt mittels der hinterlegten Drop-Down-Menüs Ihre innerbetrieblichen Regelungen zur Abrechnung der "]
[null,"Reisekosten bzw. Ihre Reisekosten-Richtlinien. "]
[]
["3.","In die Spalte G ist das Land einzugeben; bitte beachten Sie, dass wir ein Drop-Down-Menü zur Auswahl hinterlegt haben. Bei Besuch mehrerer Länder "]
[null,"an einem Tag ist der letzte Tätigkeitsort im Ausland maßgebend; bei Flügen Inland - Ausland zählt die Flugzeit zur Auslandszeit."]
[null,"Es werden die ab 1. Januar 2026 geltenden Pauschbeträge berücksichtigt."]
[]
["4.","In der Spalte M sind die gefahrenen Kilometer (hin und zurück) einzutragen. Die Reisekosten errechnen sich automatisch in Spalte M unter Berücksichtigung "]
[null,"der derzeit gültigen Kilometerpauschale von 0,38 Euro."]
[]
["5.","In den Spalten P, Q und R sind zwingend diejenigen Mahlzeiten zu erfassen, die durch den Arbeitgeber gewährt wurden (z.B. bei Seminarbuchungen,"]
[null,"Übernahme des Frühstücks auf Kosten des Arbeitgebers, Einladungen des Arbeitgebers an Geschäftsfreunde und eigene Mitarbeiter, nicht jedoch bei "]
[null,"Einladungen durch Geschäftspartner). Diese Angaben führen zu der gesetzlich vorgeschriebenen Kürzung der Tagespauschalen in den einschlägigen Fällen."]
[]
["6.","In den Spalten P bis R können Hotelrechnungen abgebildet werden; Spalte O ergibt dann die Gesamt- bzw. Kontrollsumme. In Spalte S sollen diejenigen"]
[null,"Kosten eingetragen werden, die nicht vom Arbeitgeber übernommen werden; diese Angabe führt nicht zu einer Erstattung durch den Arbeitgeber."]
[]
["7.","Sonstige bei der Reise tatsächlich angefallenen Kosten sind in dem Tabellenblatt \"Sonstige Kosten\" zu erfassen; sie werden automatisch in den "]
[null,"Abrechnungsteil der Reisekostenabrechnung übernommen."]
[]
["8.","Im unteren Teil links finden Sie den Abrechnungsteil der Reisekostenabrechnung. Dort sind der Name des Prüfenden und ggf. geleistete Vorschüsse "]
[null,"anzugeben (ebenfalls blau gekennzeichnet)."]
[]
["9.","Im unteren Teil rechts finden Sie den Auszahlungsteil der Reisekostenabrechnung. Geben Sie dort das Erstellungsdatum der Reisekostenabrechnung an. "]
[null,"Im Fall der Arbeitgebererstattung kreuzen Sie bitte die Art der Auszahlung an. Die Abrechnung ist abschließend vom Mitarbeiter und vom Arbeitgeber an "]
[null,"den vorgesehenen Stellen zu datieren und zu unterzeichnen."]
[]
["10.","Es handelt sich hierbei nur um einen Vorschlag für eine Reisekostenabrechnung. Selbstverständlich können Sie gewünschte Änderungen und Anpassungen "]
[null,"vornehmen. Gerne nehmen wir auch Ihre Verbesserungsvorschläge und Anregungen entgegen."]
[]
["11.","Die Nutzung dieses Formblatts erfolgt auf eigenes Risiko des Nutzers. Für die Korrektheit der Formeln und Berechnungen wird keine Haftung übernommen, "]
[null,"insbesondere vor dem Hintergrund der jeder Zeit möglichen, vollumfänglichen Abänderung durch den Nutzer."]
[]
["12.","Eine berufliche Auswärtstätigkeit liegt ab dem 1.1.2014 nur außerhalb der ersten Tätigkeitsstätte vor. Jeder Arbeitnehmer kann maximal eine erste"]
[null,"Tätigkeitsstätte haben, für die die Kriterien einer ortsfesten betrieblichen Einrichtung und der dauerhaften Zuordnung zu diesem Ort erfüllt sein müssen."]
[]
[null,"Bitte beachten Sie, dass auch der dauerhafte Einsatz beim Kunden oder sonstigen Dritten zu einer ersten Tätigkeitsstätte führen kann."]
[]
[null,"Für Fragen zur Einordnung der ersten Tätigkeitsstätte bzw. zu Gestaltungsmöglichkeiten des Arbeitgebers im Rahmen seines Direktionsrechtes "]
[null,"nehmen Sie gerne Rücksprache mit uns auf."]
[]
[]
["Ein Service Ihrer VTP Vesper Tielkes Partners Steuerberatungsgesellschaft"]

{"sheet":"Reisekostenabrechnung","index":1,"n_rows":44,"n_cols":20,"rows_kept":44,"cut":false,"hidden":false,"merged":[[4,7,4,8],[6,6,7,6],[4,11,6,11],[4,5,6,5],[5,8,6,8],[2,7,2,8],[2,1,2,6],[2,14,2,16],[2,17,2,18],[0,0,0,18],[1,0,1,18],[6,19,7,19],[5,16,7,16],[5,14,7,14],[4,9,5,10],[6,9,7,9],[6,10,7,10],[4,14,4,18],[5,17,7,17],[5,15,7,15],[5,18,7,18]]}
["Unternehmername und Anschrift eingeben"]
["Reisekostenabrechnung MM / 2026"]
[null,null,null,null,null,null,null,"JA"]
[]
[null,null,null,null,null,"Über-nachtung","Reiseziel","Verpflegungssatz",null,"Abwesenheit\n(nur für Berechnungszwecke)",null,"Verpfle-\ngungspau-\nschale","Gefahrene","Kilometer","Hotel-/Veranstaltungsrechnung"]
["Reisezweck","Datum","Uhrzeit","Datum","Uhrzeit",null,null,null,"An-/Abreisetag\nund > 8 Std.",null,null,null,"Kilometer","pauschale","Gesamt-\nbetrag\n(brutto)","Übernach-\ntungs-\nkosten","Rngs.-\nanteil f. Mahlzeiten\n/ pauschal, wenn inkl.","Sonstige \nHotel-\nkosten ","Private Kosten (nicht abzugs-fähig)"]
[null,"Beginn","Beginn","Ende","Ende",null,"Land (eventuell auch Stadt)","ab 24 Std.",null,"Anzahl Tage\n> 24 Std.","Anzahl 8-24 Std.",null,null,"Kfz",null,null,null,null,null,"Anzahl Über-\nnachtungen"]
[null,"TT.MM.JJ","hh,mm","TT.MM.JJ","hh,mm","JA / NEIN",null,"€","€",null,null,"€",null,{"$f":"IF($N$7='AP Auswahlwerte'!$A$12,'AP Auswahlwerte'!$B$12,IF(N7='AP Auswahlwerte'!$A$13,'AP Auswahlwerte'!$B$13,0))","v":0.3}]
[null,null,null,null,null,null,"Deutschland",{"$f":"VLOOKUP(G9,Tagessätze!A$4:E$237,2,FALSE)","v":28},{"$f":"VLOOKUP(G9,Tagessätze!A$4:E$237,3,FALSE)","v":14},{"$f":"IF(D9-B9>1,D9-B9-1,0)","v":0},{"$f":"IF(B9=\"\",0,IF(D9=B9,IF(E9-C9>8,1,0),IF(F9=\"JA\",2,IF(24-C9+E9>8,1,0))))","v":0},{"$f":"IF(B9=\"\",\"\",IF($H$3=\"BITTE AUSWÄHLEN\",\"Wahl fehlt\",IF($H$3=\"JA\",(H9*J9+I9*K9),0)))","v":""},null,{"$f":"M9*$N$8","v":0},{"$f":"SUM(P9:S9)","v":0},null,null,null,null,{"$f":"D9-B9","v":0}]
[null,null,null,null,null,null,"Deutschland",{"$f":"VLOOKUP(G10,Tagessätze!A$4:E$237,2,FALSE)","v":28},{"$f":"VLOOKUP(G10,Tagessätze!A$4:E$237,3,FALSE)","v":14},{"$f":"IF(D10-B10>1,D10-B10-1,0)","v":0},{"$f":"IF(B10=\"\",0,IF(D10=B10,IF(E10-C10>8,1,0),IF(F10=\"JA\",2,IF(24-C10+E10>8,1,0))))","v":0},"",null,{"$f":"M10*$N$8","v":0},0,null,null,null,null,0]
[null,null,null,null,null,null,"Deutschland",{"$f":"VLOOKUP(G11,Tagessätze!A$4:E$237,2,FALSE)","v":28},{"$f":"VLOOKUP(G11,Tagessätze!A$4:E$237,3,FALSE)","v":14},0,0,"",null,0,0,null,null,null,null,0]
[null,null,null,null,null,null,"Deutschland",{"$f":"VLOOKUP(G12,Tagessätze!A$4:E$237,2,FALSE)","v":28},{"$f":"VLOOKUP(G12,Tagessätze!A$4:E$237,3,FALSE)","v":14},0,0,"",null,0,0,null,null,null,null,0]
[null,null,null,null,null,null,"Deutschland",{"$f":"VLOOKUP(G13,Tagessätze!A$4:E$237,2,FALSE)","v":28},{"$f":"VLOOKUP(G13,Tagessätze!A$4:E$237,3,FALSE)","v":14},0,0,"",null,0,0,null,null,null,null,0]
[null,null,null,null,null,null,"Deutschland",{"$f":"VLOOKUP(G14,Tagessätze!A$4:E$237,2,FALSE)","v":28},{"$f":"VLOOKUP(G14,Tagessätze!A$4:E$237,3,FALSE)","v":14},0,0,"",null,0,0,null,null,null,null,0]
[null,null,null,null,null,null,"Deutschland",{"$f":"VLOOKUP(G15,Tagessätze!A$4:E$237,2,FALSE)","v":28},{"$f":"VLOOKUP(G15,Tagessätze!A$4:E$237,3,FALSE)","v":14},0,0,"",null,0,0,null,null,null,null,0]
[null,null,null,null,null,null,"Deutschland",{"$f":"VLOOKUP(G16,Tagessätze!A$4:E$237,2,FALSE)","v":28},{"$f":"VLOOKUP(G16,Tagessätze!A$4:E$237,3,FALSE)","v":14},0,0,"",null,0,{"$f":"SUM(P16:S16)","v":0},null,null,null,null,0]
[null,null,null,null,null,null,"Deutschland",{"$f":"VLOOKUP(G17,Tagessätze!A$4:E$237,2,FALSE)","v":28},{"$f":"VLOOKUP(G17,Tagessätze!A$4:E$237,3,FALSE)","v":14},{"$f":"IF(D17-B17>1,D17-B17-1,0)","v":0},{"$f":"IF(B17=\"\",0,IF(D17=B17,IF(E17-C17>8,1,0),IF(F17=\"JA\",2,IF(24-C17+E17>8,1,0))))","v":0},{"$f":"IF(B17=\"\",\"\",IF($H$3=\"BITTE AUSWÄHLEN\",\"Wahl fehlt\",IF($H$3=\"JA\",(H17*J17+I17*K17),0)))","v":""},null,{"$f":"M17*$N$8","v":0},0,null,null,null,null,0]
[null,null,null,null,null,null,"Deutschland",{"$f":"VLOOKUP(G18,Tagessätze!A$4:E$237,2,FALSE)","v":28},{"$f":"VLOOKUP(G18,Tagessätze!A$4:E$237,3,FALSE)","v":14},{"$f":"IF(D18-B18>1,D18-B18-1,0)","v":0},{"$f":"IF(B18=\"\",0,IF(D18=B18,IF(E18-C18>8,1,0),IF(F18=\"JA\",2,IF(24-C18+E18>8,1,0))))","v":0},"",null,0,{"$f":"SUM(P18:S18)","v":0},null,null,null,null,0]
[null,null,null,null,null,null,"Deutschland",{"$f":"VLOOKUP(G19,Tagessätze!A$4:E$237,2,FALSE)","v":28},{"$f":"VLOOKUP(G19,Tagessätze!A$4:E$237,3,FALSE)","v":14},0,0,"",null,0,0,null,null,null,null,0]
[null,null,null,null,null,null,"Deutschland",{"$f":"VLOOKUP(G20,Tagessätze!A$4:E$237,2,FALSE)","v":28},{"$f":"VLOOKUP(G20,Tagessätze!A$4:E$237,3,FALSE)","v":14},0,0,"",null,0,0,null,null,null,null,0]
[null,null,null,null,null,null,"Deutschland",{"$f":"VLOOKUP(G21,Tagessätze!A$4:E$237,2,FALSE)","v":28},{"$f":"VLOOKUP(G21,Tagessätze!A$4:E$237,3,FALSE)","v":14},0,0,"",null,0,0,null,null,null,null,0]
[null,null,null,null,null,null,"Deutschland",{"$f":"VLOOKUP(G22,Tagessätze!A$4:E$237,2,FALSE)","v":28},{"$f":"VLOOKUP(G22,Tagessätze!A$4:E$237,3,FALSE)","v":14},0,0,"",null,0,0,null,null,null,null,0]
[null,null,null,null,null,null,"Deutschland",{"$f":"VLOOKUP(G23,Tagessätze!A$4:E$237,2,FALSE)","v":28},{"$f":"VLOOKUP(G23,Tagessätze!A$4:E$237,3,FALSE)","v":14},0,0,"",null,0,0,null,null,null,null,0]
[null,null,null,null,null,null,"Deutschland",{"$f":"VLOOKUP(G24,Tagessätze!A$4:E$237,2,FALSE)","v":28},{"$f":"VLOOKUP(G24,Tagessätze!A$4:E$237,3,FALSE)","v":14},0,0,"",null,0,0,null,null,null,null,0]
[null,null,null,null,null,null,"Deutschland",{"$f":"VLOOKUP(G25,Tagessätze!A$4:E$237,2,FALSE)","v":28},{"$f":"VLOOKUP(G25,Tagessätze!A$4:E$237,3,FALSE)","v":14},0,0,"",null,0,0,null,null,null,null,0]
[null,null,null,null,null,null,"Deutschland",{"$f":"VLOOKUP(G26,Tagessätze!A$4:E$237,2,FALSE)","v":28},{"$f":"VLOOKUP(G26,Tagessätze!A$4:E$237,3,FALSE)","v":14},0,0,"",null,0,0,null,null,null,null,0]
[null,null,null,null,null,null,"Deutschland",{"$f":"VLOOKUP(G27,Tagessätze!A$4:E$237,2,FALSE)","v":28},{"$f":"VLOOKUP(G27,Tagessätze!A$4:E$237,3,FALSE)","v":14},0,0,"",null,0,0,null,null,null,null,0]
[null,null,null,null,null,null,"Deutschland",{"$f":"VLOOKUP(G28,Tagessätze!A$4:E$237,2,FALSE)","v":28},{"$f":"VLOOKUP(G28,Tagessätze!A$4:E$237,3,FALSE)","v":14},0,0,"",null,0,0,null,null,null,null,0]
[null,null,null,null,null,null,"Deutschland",{"$f":"VLOOKUP(G29,Tagessätze!A$4:E$237,2,FALSE)","v":28},{"$f":"VLOOKUP(G29,Tagessätze!A$4:E$237,3,FALSE)","v":14},0,0,"",null,0,0,null,null,null,null,0]
[null,null,null,null,null,null,"Deutschland",{"$f":"VLOOKUP(G30,Tagessätze!A$4:E$237,2,FALSE)","v":28},{"$f":"VLOOKUP(G30,Tagessätze!A$4:E$237,3,FALSE)","v":14},0,0,"",null,0,0,null,null,null,null,0]
[null,null,null,null,null,null,"Deutschland",{"$f":"VLOOKUP(G31,Tagessätze!A$4:E$237,2,FALSE)","v":28},{"$f":"VLOOKUP(G31,Tagessätze!A$4:E$237,3,FALSE)","v":14},0,0,"",null,0,0,null,null,null,null,0]
[null,null,null,null,null,null,"Deutschland",{"$f":"VLOOKUP(G32,Tagessätze!A$4:E$237,2,FALSE)","v":28},{"$f":"VLOOKUP(G32,Tagessätze!A$4:E$237,3,FALSE)","v":14},0,0,"",null,0,0,null,null,null,null,0]
[null,null,null,null,null,null,"Deutschland",{"$f":"VLOOKUP(G33,Tagessätze!A$4:E$237,2,FALSE)","v":28},{"$f":"VLOOKUP(G33,Tagessätze!A$4:E$237,3,FALSE)","v":14},0,0,"",null,0,0,null,null,null,null,0]
[null,null,null,null,null,null,"Deutschland",{"$f":"VLOOKUP(G34,Tagessätze!A$4:E$237,2,FALSE)","v":28},{"$f":"VLOOKUP(G34,Tagessätze!A$4:E$237,3,FALSE)","v":14},0,0,"",null,0,0,null,null,null,null,0]
["Summe",null,null,null,null,null,null,null,null,null,null,{"$f":"SUM(L9:L34)","v":0},null,{"$f":"SUM(N9:N34)","v":0},null,{"$f":"SUM(P9:P34)","v":0},0,0,0]
[]
["Abrechnung"]
["Summe",null,"Verpflegungspauschale",null,null,null,{"$f":"L35","v":0}]
["Summe",null,"Kilometerpauschale",null,null,null,{"$f":"N35","v":0}]
["Summe",null,"Übernachtung Hotel / Ü-Pauschale (ohne Mahlzeitanteil)",null,null,null,{"$f":"P35","v":0}]
["Summe",null,"Mahlzeiten (Hotel)",null,null,null,{"$f":"+Q35","v":0}]
["Summe",null,"sonstige Kosten (incl. sonstiger Hotelkosten) lt. gesonderter Anlage",null,null,null,{"$f":"'Sonstige Kosten'!D48+R35","v":0}]
["Summe",null,"abzugsfähige Reisekosten",null,null,null,{"$f":"SUM(G38:G42)","v":0}]
["Summe",null,"nicht abzugsfähige tatsächliche Verpflegungskosten",null,null,null,{"$f":"+Q35","v":0}]

{"sheet":"Sonstige Kosten","index":2,"n_rows":48,"n_cols":9,"rows_kept":48,"cut":false,"hidden":false,"merged":[[2,5,2,8],[0,0,0,3],[1,0,1,3],[2,0,2,3],[3,5,3,8],[0,5,1,8]]}
[{"$f":"Reisekostenabrechnung!A1","v":"Unternehmername und Anschrift eingeben"},null,null,null,null,"Achtung:"]
["Reisekostenabrechung"]
[{"$f":"+Reisekostenabrechnung!A2","v":"Reisekostenabrechnung MM / 2026"},null,null,null,null,"Nur von VTP"]
[null,null,null,null,null,"zu bearbeiten!"]
[null,null,null,null,null,"Betrag","VorSt-Schl.","KOST-","Konto"]
["Datum\nTT.MM.JJ","Beleg-\nnummer","Bezeichnung","Betrag",null," ","+ Konto #","Konto",0]
[null,null,null,null,null,{"$f":"D7","v":0},null,null,{"$f":"I6","v":0}]
[null,null,null,null,null,{"$f":"D8","v":0},null,null,{"$f":"I7","v":0}]
[null,null,null,null,null,0,null,null,0]
[null,null,null,null,null,0,null,null,0]
[null,null,null,null,null,0,null,null,0]
[null,null,null,null,null,0,null,null,0]
[null,null,null,null,null,0,null,null,0]
[null,null,null,null,null,0,null,null,0]
[null,null,null,null,null,0,null,null,0]
[null,null,null,null,null,0,null,null,0]
[null,null,null,null,null,0,null,null,0]
[null,null,null,null,null,0,null,null,0]
[null,null,null,null,null,0,null,null,0]
[null,null,null,null,null,0,null,null,0]
[null,null,null,null,null,0,null,null,0]
[null,null,null,null,null,0,null,null,0]
[null,null,null,null,null,0,null,null,0]
[null,null,null,null,null,0,null,null,0]
[null,null,null,null,null,0,null,null,0]
[null,null,null,null,null,0,null,null,0]
[null,null,null,null,null,0,null,null,0]
[null,null,null,null,null,0,null,null,0]
[null,null,null,null,null,0,null,null,0]
[null,null,null,null,null,0,null,null,0]
[null,null,null,null,null,0,null,null,0]
[null,null,null,null,null,0,null,null,0]
[null,null,null,null,null,0,null,null,0]
[null,null,null,null,null,0,null,null,0]
[null,null,null,null,null,0,null,null,0]
[null,null,null,null,null,0,null,null,0]
[null,null,null,null,null,0,null,null,0]
[null,null,null,null,null,0,null,null,0]
[null,null,null,null,null,0,null,null,0]
[null,null,null,null,null,0,null,null,0]
[null,null,null,null,null,0,null,null,0]
[null,null,null,null,null,0,null,null,0]
[null,null,null,null,null,0,null,null,0]
[null,null,null,null,null,0,null,null,0]
[null,null,null,null,null,0,null,null,0]
[null,null,null,null,null,0,null,null,0]
[null,null,null,null,null,0,null,null,0]
["Summe",null,null,{"$f":"SUM(D7:D47)","v":0}]

{"sheet":"Tagessätze","index":3,"n_rows":238,"n_cols":6,"rows_kept":238,"cut":false,"hidden":true,"merged":[[0,0,2,0],[0,1,0,2],[0,3,1,3]]}
["Land"," Pauschbeträge  für Verpflegungsmehraufwendungen\nbei  einer Abwesenheitsdauer je Kalendertag von",null,"Pauschbetrag  für \nÜbernachtungskosten"]
[null,"mind. 24 Stunden","weniger als 24, \naber mind. 8 Stunden"]
[null,"EUR","EUR","EUR"]
["Deutschland",28,14,20,null,"Übersicht über die ab 1. Januar 2026 geltenden Pauschbeträge für"]
["Afghanistan",30,20,95,null,"Verpflegungsmehraufwendungen und Übernachtungskosten im Ausland"]
["Ägypten",50,33,112]
["Äthiopien",44,29,159]
["Äquatorialguinea",42,28,166,null,"BMF-Schreiben vom 5. Dezember 2025"]
["Albanien",33,22,116]
["Algerien",47,32,120]
["Andorra",45,30,135]
["Angola",40,27,368]
["Antigua und Barbuda",66,44,203,null,"Pauschale Trinidad Tobago"]
["Argentinien",42,28,119]
["Armenien",29,20,107]
["Aserbaidschan",44,29,88]
["Australien - Canberra",74,49,186]
["Australien - Sydney",57,38,173]
["Australien - im Übrigen",57,38,173]
["Bahrain",48,32,153]
["Bangladesch",46,31,189]
["Barbados",54,36,206]
["Belgien",59,40,141]
["Benin",40,27,168]
["Bhutan",27,18,176]
["Bolivien",46,31,108]
["Bosnien und Herzegowina",32,21,109]
["Botsuana",40,27,105]
["Brasilien - Brasilia",51,34,88]
["Brasilien - Rio de Janeiro",69,46,140]
["Brasilien - Sao Paulo",46,31,151]
["Brasilien - im Übrigen",46,31,88]
["Brunei",45,30,110]
["Bulgarien",38,25,109]
["Burkina Faso",39,26,230]
["Burundi",58,39,102]
["Chile",44,29,154]
["China - Chengdu",41,28,131]
["China - Hongkong",83,56,209]
["China - Kanton",36,24,150]
["China - Peking",57,38,184]
["China - Shanghai",48,32,142]
["China - im Übrigen",48,32,142]
["Costa Rica",60,40,127]
["Côte d’Ivoire",60,40,171]
["Dänemark",75,50,183]
["Dominica",66,44,203,null,"Pauschale Trinidad Tobago"]
["Dominikanische Republik",50,33,167]
["Dschibuti",77,52,255]
["Ecuador",27,18,103]
["El Salvador",65,44,161]
["Eritrea",46,31,78]
["Estland",39,26,125]
["Fidschi",32,21,183]
["Finnland",54,36,171]
["Frankreich – Paris sowie Departem. 77, 78, 91 bis 95",58,39,159]
["Frankreich – im Übrigen",53,36,105]
["Gabun",64,43,263]
["Gambia",40,27,161]
["Georgien",45,30,87]
["Ghana",46,31,203]
["Grenada",66,44,203,null,"Pauschale Trinidad Tobago"]
["Grenadinen",66,44,203,null,"Pauschale Trinidad Tobago"]
["Griechenland – Athen",40,27,139]
["Griechenland – im Übrigen",36,24,150]
["Guatemala",46,31,124]
["Guinea",59,40,140]
["Guinea-Bissau",32,21,113]
["Guyana",66,44,203,null,"Pauschale Trinidad Tobago"]
["Haiti",58,39,130]
["Honduras",57,38,198]
["Indien - Bangalore",42,28,155]
["Indien - Chennai",22,15,80]
["Indien - Kalkutta",32,21,167]
["Indien - Mumbai",53,36,218]
["Indien - Neu Delhi",46,31,211]
["Indien- im Übrigen",22,15,80]
["Indonesien",45,30,179]
["Iran",33,22,196]
["Irland",64,43,164]
["Island",62,41,187]
["Israel",59,40,268]
["Italien - Mailand",42,28,191]
["Italien - Rom",48,32,150]
["Italien - im Übrigen",42,28,150]
["Jamaika",39,26,171]
["Japan - Tokio",50,33,285]
["Japan - Osaka",33,22,141]
["Japan - im Übrigen",33,22,141]
["Jemen",44,30,173]
["Jordanien",57,38,134]
["Kambodscha",42,28,108]
["Kamerun",56,37,275]
["Kanada - Ottawa",62,41,214]
["Kanada - Toronto",54,36,392]
["Kanada - Vancouver",63,42,304]
["Kanada - im Übrigen",54,36,214]
["Kap Verde",38,25,90]
["Kasachstan",33,22,108]
["Katar",81,54,128]
["Kenia",48,32,217]
["Kirgisistan",35,24,80]
["Kolumbien",34,23,123]
["Kongo, Republik",53,36,215]
["Kongo, Demokratische Republik",65,44,337]
["Korea, Demokratische Volksrepublik",28,19,92]
["Korea, Republik",39,26,130]
["Kosovo",24,16,71]
["Kroatien",46,31,191]
["Kuba",51,34,170]
["Kuwait",63,42,224]
["Laos",35,24,71]
["Lesotho",28,19,104]
["Lettland",46,31,119]
["Libyen",63,42,135]
["Libanon",69,46,146]
["Liberia",65,44,173]
["Liechtenstein",57,38,234]
["Litauen",48,32,124]
["Luxemburg",63,42,139]
["Madagaskar",33,22,116]
["Malawi",41,28,109]
["Malaysia",36,24,86]
["Malediven",70,47,200]
["Mali",42,28,141]
["Malta",59,40,191]
["Marokko",41,28,87]
["Marshall Inseln",45,30,112]
["Mauretanien",35,24,86]
["Mauritius",44,29,172]
["Mexiko",40,27,337]
["Mikronesien",41,28,140]
["Moldau, Republik",26,17,73]
["Monaco",52,35,187]
["Mongolei",23,16,92]
["Montenegro",32,21,85]
["Mosambik",51,34,208]
["Myanmar",23,16,103]
["Namibia",28,19,146]
["Nepal",33,22,125]
["Neuseeland",58,39,148]
["Nicaragua",46,31,105]
["Niederlande",58,39,167]
["Niger",42,28,131]
["Nigeria",52,35,202]
["Nordmazedonien",27,18,89]
["Norwegen",75,50,139]
["Österreich",50,33,117]
["Oman",64,43,141]
["Pakistan - Islamabad",56,37,145]
["Pakistan - im Übrigen",41,28,199]
["Palau",51,34,193]
["Panama",41,28,82]
["Papua-Neuguinea",59,40,159]
["Paraguay",39,26,124]
["Peru",52,35,128]
["Philippinen",41,28,140]
["Polen – Breslau",34,23,124]
["Polen – Warschau",40,27,143]
["Polen – im Übrigen",34,23,124]
["Portugal",32,21,111]
["Ruanda",44,29,117]
["Rumänien – Bukarest",38,25,103]
["Rumänien – im Übrigen",38,25,94]
["Russische Föderation - Moskau ",30,20,235]
["Russische Föderation - St. Petersburg",28,19,133]
["Russische Föderation - im Übrigen",28,19,133]
["Sambia",38,25,105]
["Samoa",39,26,105]
["San Marino",34,23,79]
["São Tomé – Príncipe",36,24,147]
["Saudi-Arabien - Djidda",57,38,181]
["Saudi-Arabien - Riad",56,37,186]
["Saudi-Arabien - im Übrigen",56,37,181]
["Schweden",66,44,140]
["Schweiz - Genf",70,47,197]
["Schweiz - im Übrigen",70,47,195]
["Senegal",48,32,160]
["Serbien",27,18,97]
["Sierra Leone",57,38,145]
["Simbabwe",63,42,198]
["Singapur",71,48,277]
["Slowakische Republik",33,22,121]
["Slowenien",38,25,126]
["Spanien - Barcelona",34,23,144]
["Spanien - Kanarische Inseln",36,24,103]
["Spanien – Madrid",42,28,131]
["Spanien - Palma de Mallorca",44,29,142]
["Spanien - im Übrigen",34,23,103]
["Sri Lanka",36,24,112]
["St. Kitts und Nevis",66,44,203,null,"Pauschale Trinidad Tobago"]
["St. Lucia",66,44,203,null,"Pauschale Trinidad Tobago"]
["St. Vincent und die Grenadinen",66,44,203,null,"Pauschale Trinidad Tobago"]
["Sudan",33,22,195]
["Südafrika - Kapstadt",33,22,130]
["Südafrika - Johannisburg",36,24,129]
["Südafrika - im Übrigen",29,20,109]
["Südsudan",51,34,159]
["Suriname",66,44,203,null,"Pauschale Trinidad Tobago"]
["Syrien",38,13,140]
["Tadschikistan",27,18,85]
["Taiwan",51,34,174]
["Tansania",44,29,97]
["Thailand",36,24,114]
["Togo",36,24,144]
["Tonga",29,20,102]
["Trinidad und Tobago",66,44,203]
["Tschad",42,28,155]
["Tschechische Republik",32,21,77]
["Türkei - Ankara",32,21,110]
["Türkei - Izmir",44,29,120]
["Türkei - im Übrigen",24,16,107]
["Tunesien",40,27,144]
["Turkmenistan",28,19,135]
["Uganda",45,30,207]
["Ukraine",33,22,180]
["Ungarn",32,21,85]
["Uruguay",40,27,113]
["Usbekistan",32,21,133]
["Vatikanstaat",48,32,150]
["Venezuela",51,34,178]
["Vereinigte Arabische Emirate",81,54,169]
["Vereinigte Staaten von Amerika - Atlanta",77,52,182]
["Vereinigte Staaten von Amerika - Boston",63,42,333]
["Vereinigte Staaten von Amerika - Chicago",65,44,233]
["Vereinigte Staaten von Amerika - Houston",62,41,204]
["Vereinigte Staaten von Amerika - Los Angeles",64,43,262]
["Vereinigte Staaten von Amerika - Miami",65,44,256]
["Vereinigte Staaten von Amerika - New York Stadt",66,44,308]
["Vereinigte Staaten von Amerika - San Francisco",59,40,327]
["Vereinigte Staaten von Amerika - Washington",66,44,203]
["Vereinigte Staaten von Amerika - im Übrigen",59,40,182]
["Vereinigtes Königreich von Großbritannien und Nordirland - London",66,44,163]
["Vereinigtes Königreich von Großbritannien und Nordirland - im Übrigen",52,35,99]
["Vietnam",36,24,111]
["Weißrussland",21,14,148]
["Zentralafrikanische Republik",53,36,210]
["Zypern",42,28,125]

{"sheet":"AP Auswahlwerte","index":4,"n_rows":13,"n_cols":18,"rows_kept":13,"cut":false,"hidden":true,"merged":[]}
["BITTE AUSWÄHLEN",null,"Sachbezugswerte im Inland 2026",null,"pauschale Kürzung Pauschale 24h",null,null,null,"BITTE AUSWÄHLEN",null,null,null,null,null,null,"OHNE Verpfleg.",null,"BITTE AUSWÄHLEN"]
["JA",null,null,null,"wenn fehlender Ausweis in Rechnung",null,null,null,"Arbeitnehmer werden tatsächliche Verpflegungskosten nicht erstattet. Bei Pauschaler Rechnungstellung pauschale Kürzung 20%/40%/40% des VMA.",null,null,null,null,null,null,"PAUSCHAL",null,"Barzahlung / aus Kasse"]
["NEIN",null,"FRÜHSTÜCK",2.37,0.2,null,null,null,"Zahlung der steuerfreien Pauschale (mit prozentualer Kürzung für Mahlzeiten) ",null,null,null,null,null,null,"Betrag?",null,"Überweisung"]
["-",null,"MITTAGESSEN",4.57,0.4,null,null,null,null,null,null,null,null,null,null,null,null,"Lohn- / Gehaltsabrechnung"]
[null,null,"ABENDESSEN",4.57,0.4]
[]
["Übernachtungspauschale"]
[0,"Nein"]
[1,"JA",null,null,null,null,null,null,"BITTE AUSWÄHLEN"]
[null,null,null,null,null,null,null,null,"Entfällt (mangels Kosten, Erstattung oder steuerpfl. Mahlzeiten)"]
["Fahrzeug",null,null,null,null,null,null,null,"Individuelle Versteuerung des Sachbezugswertes durch AN"]
["Kfz",0.3,null,null,null,null,null,null,"Pauschale Versteuerung des Sachbezugswertes durch AG"]
["sonst.Motorisierung",0.2]

{"sheet":"Sonstige Kosten - Auswahl","index":5,"n_rows":17,"n_cols":1,"rows_kept":17,"cut":false,"hidden":true,"merged":[]}
["Parken"]
["Tanken"]
["Taxi"]
["Bewirtung Arbeitnehmer"]
["Bewirtung Geschäftsfreunde"]
["Bürobedarf"]
["EDV-Bedarf"]
["Geschenke bis 50 Euro"]
["Geschenke über 50 Euro"]
["Kfz-Reparatur"]
["Mautgebühren"]
["Porto"]
["Sonstige laufende Kfz-Kosten"]
["Sonstiges"]
[]
[]
["ausblenden"]